[Event "Early-Titled-Tuesday-Blitz-October-24-2023"]
[Site "Chess.com"]
[Date "2023.10.24"]
[Round "3"]
[White "Thunderbolt135"]
[Black "dropstoneDP"]
[Result "0-1"]
[WhiteElo "2753"]
[BlackElo "3087"]
[TimeControl "180+1"]
[EndTime "8:26:55 PDT"]
[Termination "dropstoneDP won by resignation"]

1. b3 {[%clk 0:03:00.9]} 1... d5 {[%clk 0:02:59]} 2. Bb2 {[%clk 0:02:59.2]} 2...
Bf5 {[%clk 0:02:55.5]} 3. e3 {[%clk 0:02:57.1]} 3... e6 {[%clk 0:02:55.8]} 4. d3
{[%clk 0:02:56.2]} 4... Nf6 {[%clk 0:02:55.6]} 5. Nd2 {[%clk 0:02:56.9]} 5... h6
{[%clk 0:02:56.1]} 6. Be2 {[%clk 0:02:56.9]} 6... a5 {[%clk 0:02:56.3]} 7. a3
{[%clk 0:02:56.4]} 7... Nbd7 {[%clk 0:02:54.6]} 8. Ngf3 {[%clk 0:02:53.9]} 8...
Be7 {[%clk 0:02:55]} 9. h3 {[%clk 0:02:53.5]} 9... Bh7 {[%clk 0:02:55]} 10. O-O
{[%clk 0:02:52.3]} 10... O-O {[%clk 0:02:55]} 11. Re1 {[%clk 0:02:43.7]} 11...
c6 {[%clk 0:02:54.8]} 12. Bf1 {[%clk 0:02:42]} 12... Nc5 {[%clk 0:02:47.2]} 13.
d4 {[%clk 0:02:37.9]} 13... Nce4 {[%clk 0:02:46.3]} 14. Nxe4 {[%clk 0:02:35]}
14... Nxe4 {[%clk 0:02:47.2]} 15. Bd3 {[%clk 0:02:34.4]} 15... Bd6 {[%clk
0:02:46]} 16. c4 {[%clk 0:02:32.1]} 16... Rb8 {[%clk 0:02:28.3]} 17. Qc2 {[%clk
0:02:16.9]} 17... b5 {[%clk 0:02:26.8]} 18. Ne5 {[%clk 0:02:04.1]} 18... bxc4
{[%clk 0:02:20.9]} 19. bxc4 {[%clk 0:02:03.1]} 19... Bxe5 {[%clk 0:02:19.4]} 20.
dxe5 {[%clk 0:02:04]} 20... dxc4 {[%clk 0:02:18.4]} 21. Bxe4 {[%clk 0:02:03.4]}
21... Bxe4 {[%clk 0:02:17.7]} 22. Qxe4 {[%clk 0:02:04.3]} 22... Rxb2 {[%clk
0:02:17.7]} 23. Qxc4 {[%clk 0:02:01.4]} 23... Qd2 {[%clk 0:02:15.9]} 24. Rf1
{[%clk 0:01:58.6]} 24... Rc2 {[%clk 0:02:14.8]} 25. Qe4 {[%clk 0:01:45.8]} 25...
Rd8 {[%clk 0:02:13.5]} 26. Qf3 {[%clk 0:01:12.2]} 26... Qc3 {[%clk 0:02:04.5]}
27. Rfd1 {[%clk 0:01:09.3]} 27... Rxd1+ {[%clk 0:02:03.4]} 28. Rxd1 {[%clk
0:01:10.2]} 28... Rc1 {[%clk 0:02:02.9]} 29. Rxc1 {[%clk 0:01:06.5]} 29... Qxc1+
{[%clk 0:02:03.8]} 30. Kh2 {[%clk 0:01:07]} 30... Qc5 {[%clk 0:01:58.2]} 31. Qe4
{[%clk 0:01:06.4]} 31... Qxa3 {[%clk 0:01:56.9]} 32. Qxc6 {[%clk 0:01:06.3]}
32... g6 {[%clk 0:01:51.7]} 33. Qe8+ {[%clk 0:00:58.2]} 33... Kg7 {[%clk
0:01:52]} 34. Qd8 {[%clk 0:00:42.7]} 34... a4 {[%clk 0:01:51.9]} 35. Qf6+ {[%clk
0:00:42.8]} 35... Kg8 {[%clk 0:01:51.9]} 36. Qd8+ {[%clk 0:00:42.4]} 36... Qf8
{[%clk 0:01:52.2]} 37. Qa5 {[%clk 0:00:41.2]} 37... Qe8 {[%clk 0:01:50.2]} 38.
Qa7 {[%clk 0:00:35.5]} 38... Qc6 {[%clk 0:01:49.7]} 39. Qe7 {[%clk 0:00:30.7]}
39... Qa8 {[%clk 0:01:48.7]} 40. Qa3 {[%clk 0:00:31]} 40... Qa5 {[%clk
0:01:48.5]} 41. f4 {[%clk 0:00:30.2]} 41... Qa7 {[%clk 0:01:47.7]} 42. Kg3
{[%clk 0:00:17.8]} 42... Kg7 {[%clk 0:01:47.8]} 43. Kf3 {[%clk 0:00:17.3]} 43...
Qb7+ {[%clk 0:01:47.9]} 44. Kf2 {[%clk 0:00:16]} 44... Qb3 {[%clk 0:01:48.4]}
45. Qe7 {[%clk 0:00:16.3]} 45... Qc2+ {[%clk 0:01:44.1]} 46. Kg3 {[%clk
0:00:15.9]} 46... Qd2 {[%clk 0:01:40.4]} 47. Kf3 {[%clk 0:00:11.9]} 47... Qd5+
{[%clk 0:01:37.4]} 48. Kg3 {[%clk 0:00:12]} 48... Qd3 {[%clk 0:01:36.7]} 49. Kf3
{[%clk 0:00:06]} 49... a3 {[%clk 0:01:37.1]} 50. Qa7 {[%clk 0:00:04.9]} 50...
Qd5+ {[%clk 0:01:36.1]} 51. Kg3 {[%clk 0:00:04.2]} 51... a2 {[%clk 0:01:36.3]}
52. Kh2 {[%clk 0:00:04.4]} 52... Qd2 {[%clk 0:01:36]} 53. h4 {[%clk 0:00:03.8]}
53... h5 {[%clk 0:01:35.2]} 54. Qe7 {[%clk 0:00:03.2]} 54... a1=Q {[%clk
0:01:34.4]} 0-1

[Event "Early-Titled-Tuesday-Blitz-October-24-2023"]
[Site "Chess.com"]
[Date "2023.10.24"]
[Round "3"]
[White "wannabe2700"]
[Black "Cambek64"]
[Result "1-0"]
[WhiteElo "2621"]
[BlackElo "2445"]
[TimeControl "180+1"]
[EndTime "8:26:56 PDT"]
[Termination "wannabe2700 won by resignation"]

1. e4 {[%clk 0:02:55.1]} 1... e6 {[%clk 0:02:59.6]} 2. d4 {[%clk 0:02:55]} 2...
d5 {[%clk 0:02:50]} 3. e5 {[%clk 0:02:52.6]} 3... c5 {[%clk 0:02:49.3]} 4. c3
{[%clk 0:02:52]} 4... Nc6 {[%clk 0:02:49.7]} 5. Nf3 {[%clk 0:02:52.6]} 5... Bd7
{[%clk 0:02:50.1]} 6. Be2 {[%clk 0:02:52.8]} 6... Nge7 {[%clk 0:02:49]} 7. O-O
{[%clk 0:02:52.6]} 7... cxd4 {[%clk 0:02:49.2]} 8. cxd4 {[%clk 0:02:52.7]} 8...
Nf5 {[%clk 0:02:49.5]} 9. Nc3 {[%clk 0:02:53.2]} 9... Be7 {[%clk 0:02:44.4]} 10.
Bd3 {[%clk 0:02:49.7]} 10... Nfxd4 {[%clk 0:02:43]} 11. Nxd4 {[%clk 0:02:50.6]}
11... Nxd4 {[%clk 0:02:42.6]} 12. Qg4 {[%clk 0:02:51.4]} 12... Nc6 {[%clk
0:02:34.9]} 13. Qxg7 {[%clk 0:02:51.5]} 13... Rf8 {[%clk 0:02:34.9]} 14. Bh6
{[%clk 0:02:49.1]} 14... a6 {[%clk 0:02:26.6]} 15. Rae1 {[%clk 0:02:46]} 15...
Qc7 {[%clk 0:02:23.7]} 16. Qxh7 {[%clk 0:02:44.6]} 16... Nxe5 {[%clk 0:02:20.8]}
17. Bxf8 {[%clk 0:02:44.7]} 17... Bxf8 {[%clk 0:02:15.7]} 18. Nxd5 {[%clk
0:02:43.9]} 18... exd5 {[%clk 0:02:07]} 19. f4 {[%clk 0:02:44]} 19... O-O-O
{[%clk 0:01:59.2]} 20. fxe5 {[%clk 0:02:42.7]} 20... Be6 {[%clk 0:01:52.1]} 21.
Rc1 {[%clk 0:02:40.6]} 21... Bc5+ {[%clk 0:01:52]} 22. Kh1 {[%clk 0:02:41.1]}
22... a5 {[%clk 0:01:51.7]} 23. a3 {[%clk 0:02:29.6]} 23... a4 {[%clk
0:01:50.5]} 24. Bf5 {[%clk 0:02:28.1]} 24... b6 {[%clk 0:01:36.8]} 25. Bxe6+
{[%clk 0:02:27.5]} 25... fxe6 {[%clk 0:01:36.6]} 26. Rf7 {[%clk 0:02:28.4]}
26... Rd7 {[%clk 0:01:09.8]} 27. Rxd7 {[%clk 0:02:17]} 27... Qxd7 {[%clk
0:01:08.7]} 28. Qxd7+ {[%clk 0:02:17.9]} 28... Kxd7 {[%clk 0:01:08.3]} 29. g4
{[%clk 0:02:14.4]} 29... Be3 {[%clk 0:01:03.9]} 30. Re1 {[%clk 0:02:12.8]} 30...
d4 {[%clk 0:00:58.9]} 31. Kg2 {[%clk 0:02:11.6]} 31... Bh6 {[%clk 0:00:48.3]}
32. Kf3 {[%clk 0:02:09.5]} 32... d3 {[%clk 0:00:47.4]} 33. Ke4 {[%clk
0:02:08.4]} 33... d2 {[%clk 0:00:45.7]} 34. Rd1 {[%clk 0:02:08.6]} 34... Kc6
{[%clk 0:00:46.1]} 35. h4 {[%clk 0:02:08.8]} 35... Kc5 {[%clk 0:00:46.3]} 36. g5
{[%clk 0:02:09.1]} 36... Bg7 {[%clk 0:00:46.6]} 37. Rxd2 {[%clk 0:02:09.3]}
37... Kc4 {[%clk 0:00:46.7]} 38. h5 {[%clk 0:02:09.1]} 38... b5 {[%clk
0:00:45.3]} 39. h6 {[%clk 0:02:09.5]} 39... Bf8 {[%clk 0:00:45.6]} 40. Rd8
{[%clk 0:02:08]} 40... Be7 {[%clk 0:00:44.1]} 41. Rc8+ {[%clk 0:02:04.5]} 41...
Kb3 {[%clk 0:00:42.5]} 42. h7 {[%clk 0:02:05.4]} 42... Bxg5 {[%clk 0:00:37.7]}
43. h8=Q {[%clk 0:02:04.8]} 43... Ka2 {[%clk 0:00:33.8]} 44. Qh2 {[%clk
0:01:57.8]} 44... Be7 {[%clk 0:00:29.8]} 45. Qc2 {[%clk 0:01:52.4]} 45... b4
{[%clk 0:00:28.8]} 46. axb4 {[%clk 0:01:51.1]} 46... Bxb4 {[%clk 0:00:27.5]} 47.
Rc4 {[%clk 0:01:41.6]} 47... a3 {[%clk 0:00:23.5]} 48. Rxb4 {[%clk 0:01:39.9]}
48... Ka1 {[%clk 0:00:23.1]} 49. b3 {[%clk 0:01:23.6]} 1-0

[Event "Early-Titled-Tuesday-Blitz-October-24-2023"]
[Site "Chess.com"]
[Date "2023.10.24"]
[Round "3"]
[White "SlavenPastar"]
[Black "rezamahdavi2008"]
[Result "0-1"]
[WhiteElo "2604"]
[BlackElo "2883"]
[TimeControl "180+1"]
[EndTime "8:26:59 PDT"]
[Termination "rezamahdavi2008 won by checkmate"]

1. b3 {[%clk 0:03:00.9]} 1... Nf6 {[%clk 0:02:50.7]} 2. Bb2 {[%clk 0:03:01.4]}
2... e6 {[%clk 0:02:46.8]} 3. Nf3 {[%clk 0:03:00.4]} 3... d5 {[%clk 0:02:47]} 4.
g3 {[%clk 0:03:00.6]} 4... c5 {[%clk 0:02:46.8]} 5. Bg2 {[%clk 0:03:00.3]} 5...
Nc6 {[%clk 0:02:44.3]} 6. d4 {[%clk 0:03:00]} 6... cxd4 {[%clk 0:02:39.9]} 7.
Nxd4 {[%clk 0:02:59.8]} 7... h5 {[%clk 0:02:39.1]} 8. Nxc6 {[%clk 0:02:56]} 8...
bxc6 {[%clk 0:02:39.5]} 9. h3 {[%clk 0:02:55.4]} 9... a5 {[%clk 0:02:34.6]} 10.
a4 {[%clk 0:02:51.6]} 10... Ba6 {[%clk 0:02:34.9]} 11. O-O {[%clk 0:02:51]}
11... h4 {[%clk 0:02:31.7]} 12. g4 {[%clk 0:02:51]} 12... Bd6 {[%clk 0:02:30.6]}
13. Re1 {[%clk 0:02:45.7]} 13... Bc7 {[%clk 0:02:30.5]} 14. Nd2 {[%clk
0:02:29.7]} 14... e5 {[%clk 0:02:22.5]} 15. Nf3 {[%clk 0:02:25.9]} 15... e4
{[%clk 0:02:21.4]} 16. Nd4 {[%clk 0:02:05.2]} 16... Qd6 {[%clk 0:02:19.6]} 17.
Qd2 {[%clk 0:01:32.8]} 17... Nxg4 {[%clk 0:02:12.8]} 18. Qg5 {[%clk 0:01:23.9]}
18... Nh6 {[%clk 0:01:44.6]} 19. c4 {[%clk 0:01:16.9]} 19... Qh2+ {[%clk
0:01:41.5]} 20. Kf1 {[%clk 0:01:16.4]} 20... Bf4 {[%clk 0:01:42.4]} 21. Qxh4
{[%clk 0:01:03.2]} 21... g5 {[%clk 0:01:40.7]} 22. Qh5 {[%clk 0:00:58.6]} 22...
O-O-O {[%clk 0:01:26.1]} 23. Nxc6 {[%clk 0:00:50.8]} 23... e3 {[%clk 0:01:21.6]}
24. Bxh8 {[%clk 0:00:26.1]} 24... exf2 {[%clk 0:01:21.5]} 25. Kxf2 {[%clk
0:00:26.3]} 25... Be3+ {[%clk 0:00:48.9]} 26. Kxe3 {[%clk 0:00:15.6]} 26... Qf4+
{[%clk 0:00:49.2]} 27. Kd3 {[%clk 0:00:15.8]} 27... dxc4+ {[%clk 0:00:49.9]} 28.
Kc2 {[%clk 0:00:12.2]} 28... Qd2+ {[%clk 0:00:49.9]} 29. Kb1 {[%clk 0:00:11.3]}
29... Qxe1+ {[%clk 0:00:49.4]} 30. Ka2 {[%clk 0:00:11.8]} 30... Qd2+ {[%clk
0:00:49.7]} 31. Ka3 {[%clk 0:00:11.9]} 31... Qd6+ {[%clk 0:00:50]} 32. Kb2
{[%clk 0:00:10.1]} 32... Qxc6 {[%clk 0:00:49.1]} 33. Rc1 {[%clk 0:00:10.3]}
33... Rd2+ {[%clk 0:00:43.9]} 34. Kc3 {[%clk 0:00:09.2]} 34... Qd6 {[%clk
0:00:39.3]} 35. bxc4 {[%clk 0:00:05.3]} 35... Qb4# {[%clk 0:00:39.2]} 0-1

[Event "Early-Titled-Tuesday-Blitz-October-24-2023"]
[Site "Chess.com"]
[Date "2023.10.24"]
[Round "3"]
[White "Skatchkov_V"]
[Black "suspiciumchess"]
[Result "1-0"]
[WhiteElo "2550"]
[BlackElo "2306"]
[TimeControl "180+1"]
[EndTime "8:27:01 PDT"]
[Termination "Skatchkov_V won by resignation"]

1. d4 {[%clk 0:03:00.9]} 1... d5 {[%clk 0:02:58.4]} 2. c4 {[%clk 0:03:01]} 2...
c6 {[%clk 0:02:58.4]} 3. cxd5 {[%clk 0:02:57.6]} 3... cxd5 {[%clk 0:02:59.3]} 4.
Bg5 {[%clk 0:02:57]} 4... h6 {[%clk 0:02:58.6]} 5. Bh4 {[%clk 0:02:56.4]} 5...
Bf5 {[%clk 0:02:59.2]} 6. Nc3 {[%clk 0:02:55.9]} 6... Nc6 {[%clk 0:02:59.1]} 7.
Nf3 {[%clk 0:02:55.7]} 7... g5 {[%clk 0:02:52.4]} 8. Bg3 {[%clk 0:02:54.6]} 8...
Bg7 {[%clk 0:02:53.3]} 9. e3 {[%clk 0:02:54.5]} 9... Nf6 {[%clk 0:02:50.5]} 10.
Bd3 {[%clk 0:02:44]} 10... Ne4 {[%clk 0:02:18.5]} 11. Qb3 {[%clk 0:02:30]} 11...
Nxg3 {[%clk 0:02:13.2]} 12. Qxb7 {[%clk 0:02:22.9]} 12... Qc8 {[%clk 0:01:51.2]}
13. Qxc8+ {[%clk 0:01:53.2]} 13... Rxc8 {[%clk 0:01:52.1]} 14. Bxf5 {[%clk
0:01:50.7]} 14... Nxf5 {[%clk 0:01:51.8]} 15. Nxd5 {[%clk 0:01:51.3]} 15... e6
{[%clk 0:01:51.3]} 16. Nc3 {[%clk 0:01:50.7]} 16... O-O {[%clk 0:01:51]} 17. O-O
{[%clk 0:01:48.9]} 17... g4 {[%clk 0:01:43.9]} 18. Nd2 {[%clk 0:01:46.3]} 18...
Rfd8 {[%clk 0:01:39]} 19. Rab1 {[%clk 0:01:36.1]} 19... Nfe7 {[%clk 0:01:20.8]}
20. Rfc1 {[%clk 0:01:26.9]} 20... e5 {[%clk 0:01:20.7]} 21. d5 {[%clk
0:01:08.6]} 21... Nxd5 {[%clk 0:01:20]} 22. Nxd5 {[%clk 0:01:09.5]} 22... Rxd5
{[%clk 0:01:19.9]} 23. Ne4 {[%clk 0:01:09.8]} 23... Ne7 {[%clk 0:01:11.3]} 24.
h3 {[%clk 0:01:10.4]} 24... gxh3 {[%clk 0:01:04.1]} 25. g4 {[%clk 0:01:10.4]}
25... h5 {[%clk 0:00:55.7]} 26. gxh5 {[%clk 0:01:10.1]} 26... f5 {[%clk
0:00:53.5]} 27. Ng5 {[%clk 0:01:10.1]} 27... Rxc1+ {[%clk 0:00:33.4]} 28. Rxc1
{[%clk 0:01:10.1]} 28... e4 {[%clk 0:00:34]} 29. Nxh3 {[%clk 0:01:04.4]} 29...
Rd7 {[%clk 0:00:17.5]} 30. b3 {[%clk 0:01:03.6]} 30... Kf7 {[%clk 0:00:17.1]}
31. Rc5 {[%clk 0:01:01.5]} 31... Bh6 {[%clk 0:00:14.2]} 32. Kg2 {[%clk
0:00:58.9]} 32... Ke6 {[%clk 0:00:14.4]} 33. Ra5 {[%clk 0:00:57.6]} 33... Nd5
{[%clk 0:00:14.3]} 34. Ra6+ {[%clk 0:00:56]} 34... Ke5 {[%clk 0:00:12.7]} 35.
Rxh6 {[%clk 0:00:55.5]} 35... Rg7+ {[%clk 0:00:12.6]} 36. Kh2 {[%clk 0:00:54.5]}
36... Nc3 {[%clk 0:00:09]} 37. Nf4 {[%clk 0:00:53.2]} 1-0

[Event "Early-Titled-Tuesday-Blitz-October-24-2023"]
[Site "Chess.com"]
[Date "2023.10.24"]
[Round "3"]
[White "esrosenberg"]
[Black "DumbKing75"]
[Result "1-0"]
[WhiteElo "2461"]
[BlackElo "2604"]
[TimeControl "180+1"]
[EndTime "8:27:03 PDT"]
[Termination "esrosenberg won on time"]

1. d4 {[%clk 0:03:00.9]} 1... Nf6 {[%clk 0:02:58.6]} 2. Nf3 {[%clk 0:03:01.4]}
2... d5 {[%clk 0:02:55.8]} 3. g3 {[%clk 0:03:01.1]} 3... c5 {[%clk 0:02:54.2]}
4. Bg2 {[%clk 0:03:00.9]} 4... cxd4 {[%clk 0:02:51.9]} 5. O-O {[%clk 0:03:01]}
5... Nc6 {[%clk 0:02:50.1]} 6. Nxd4 {[%clk 0:03:01.1]} 6... e6 {[%clk
0:02:45.1]} 7. c4 {[%clk 0:03:00.3]} 7... Qb6 {[%clk 0:02:02.9]} 8. Nb5 {[%clk
0:02:15.5]} 8... dxc4 {[%clk 0:01:31.8]} 9. Nd6+ {[%clk 0:02:13.9]} 9... Bxd6
{[%clk 0:01:31.7]} 10. Qxd6 {[%clk 0:02:14.8]} 10... Nd4 {[%clk 0:01:26.3]} 11.
Qxb6 {[%clk 0:01:56.3]} 11... axb6 {[%clk 0:01:27.2]} 12. Nc3 {[%clk 0:01:56.5]}
12... O-O {[%clk 0:01:07.6]} 13. Bg5 {[%clk 0:01:46.3]} 13... h6 {[%clk
0:00:55.8]} 14. Bxf6 {[%clk 0:01:40.8]} 14... gxf6 {[%clk 0:00:56.7]} 15. e3
{[%clk 0:01:40.6]} 15... Nc6 {[%clk 0:00:57.2]} 16. Ne4 {[%clk 0:01:37.3]} 16...
Kg7 {[%clk 0:00:49.6]} 17. Nd6 {[%clk 0:01:32.6]} 17... Na5 {[%clk 0:00:44.2]}
18. Rfc1 {[%clk 0:01:26.4]} 18... e5 {[%clk 0:00:18.8]} 19. Nxc4 {[%clk
0:01:23]} 19... Nxc4 {[%clk 0:00:16.8]} 20. Rxc4 {[%clk 0:01:23.9]} 20... Be6
{[%clk 0:00:17.6]} 21. Rb4 {[%clk 0:01:18.3]} 21... Rfd8 {[%clk 0:00:14.6]} 22.
Bxb7 {[%clk 0:01:12.1]} 22... Rxa2 {[%clk 0:00:08.1]} 23. Rxa2 {[%clk
0:01:10.2]} 23... Bxa2 {[%clk 0:00:09]} 24. Rxb6 {[%clk 0:01:00.9]} 24... Rb8
{[%clk 0:00:09]} 25. Ra6 {[%clk 0:00:55.9]} 25... Bc4 {[%clk 0:00:09.5]} 26. Ra7
{[%clk 0:00:56.3]} 26... f5 {[%clk 0:00:05.7]} 27. h4 {[%clk 0:00:40]} 27... e4
{[%clk 0:00:04.9]} 28. Kg2 {[%clk 0:00:33.6]} 28... Kf6 {[%clk 0:00:03.7]} 29.
b4 {[%clk 0:00:24.8]} 1-0

[Event "Early-Titled-Tuesday-Blitz-October-24-2023"]
[Site "Chess.com"]
[Date "2023.10.24"]
[Round "3"]
[White "CristianS27"]
[Black "knightinshiningarmour16"]
[Result "1-0"]
[WhiteElo "2523"]
[BlackElo "2146"]
[TimeControl "180+1"]
[EndTime "8:27:06 PDT"]
[Termination "CristianS27 won by resignation"]

1. e4 {[%clk 0:02:58.2]} 1... c6 {[%clk 0:02:59.8]} 2. d4 {[%clk 0:02:55.6]}
2... d5 {[%clk 0:02:59.6]} 3. exd5 {[%clk 0:02:56.5]} 3... cxd5 {[%clk
0:02:59.7]} 4. c4 {[%clk 0:02:57.4]} 4... Nf6 {[%clk 0:02:58]} 5. Nc3 {[%clk
0:02:58.3]} 5... Nc6 {[%clk 0:02:57.7]} 6. Bg5 {[%clk 0:02:58.6]} 6... Be6
{[%clk 0:02:52.2]} 7. Be2 {[%clk 0:02:58.4]} 7... g6 {[%clk 0:02:52]} 8. Bf3
{[%clk 0:02:57.2]} 8... Qa5 {[%clk 0:02:25.6]} 9. Bxf6 {[%clk 0:02:48.3]} 9...
exf6 {[%clk 0:02:25.2]} 10. cxd5 {[%clk 0:02:48.4]} 10... Bb4 {[%clk 0:02:15.4]}
11. dxe6 {[%clk 0:02:21.5]} 11... Bxc3+ {[%clk 0:02:11.5]} 12. bxc3 {[%clk
0:02:22.4]} 12... Qxc3+ {[%clk 0:02:11.6]} 13. Kf1 {[%clk 0:02:21.8]} 13... Nxd4
{[%clk 0:02:01.3]} 14. exf7+ {[%clk 0:02:21.2]} 14... Kxf7 {[%clk 0:02:00.9]}
15. Ne2 {[%clk 0:01:57.3]} 15... Nxe2 {[%clk 0:01:55.7]} 16. Bxe2 {[%clk
0:01:58.2]} 16... Rhd8 {[%clk 0:01:54.5]} 17. Qb3+ {[%clk 0:01:57.4]} 17... Qxb3
{[%clk 0:01:53.4]} 18. axb3 {[%clk 0:01:58.3]} 18... a6 {[%clk 0:01:49.1]} 19.
Bc4+ {[%clk 0:01:38.9]} 19... Kg7 {[%clk 0:01:48.4]} 20. Re1 {[%clk 0:01:39.5]}
20... b5 {[%clk 0:01:47]} 21. Be6 {[%clk 0:01:19.8]} 21... Rd6 {[%clk
0:01:40.1]} 22. h4 {[%clk 0:01:09.5]} 22... f5 {[%clk 0:01:28.7]} 23. Rh3 {[%clk
0:00:51.2]} 23... Re8 {[%clk 0:01:11.8]} 24. Rhe3 {[%clk 0:00:51]} 24... Kf6
{[%clk 0:01:06.1]} 25. Bc4 {[%clk 0:00:14.7]} 25... Rxe3 {[%clk 0:01:05.5]} 26.
Rxe3 {[%clk 0:00:15.3]} 26... bxc4 {[%clk 0:01:05.6]} 27. bxc4 {[%clk
0:00:16.2]} 27... Rd4 {[%clk 0:01:05.4]} 28. Rc3 {[%clk 0:00:14.9]} 28... Rxh4
{[%clk 0:01:05.4]} 29. c5 {[%clk 0:00:15.5]} 29... Rb4 {[%clk 0:01:04.4]} 30. c6
{[%clk 0:00:15.6]} 30... Rb8 {[%clk 0:01:04.5]} 31. Ke2 {[%clk 0:00:15.8]} 31...
Rc8 {[%clk 0:01:04.3]} 32. Ke3 {[%clk 0:00:15.7]} 32... a5 {[%clk 0:01:04.7]}
33. Kd4 {[%clk 0:00:15]} 33... Ke6 {[%clk 0:01:04.9]} 34. Kc5 {[%clk 0:00:14.5]}
34... a4 {[%clk 0:01:03.8]} 35. Kb6 {[%clk 0:00:14]} 35... Kd6 {[%clk 0:01:03]}
36. Rd3+ {[%clk 0:00:14]} 36... Ke5 {[%clk 0:01:02.6]} 37. Kb7 {[%clk
0:00:14.4]} 37... Re8 {[%clk 0:01:02.2]} 38. Re3+ {[%clk 0:00:12.8]} 38... Kd6
{[%clk 0:00:56.9]} 39. Rxe8 {[%clk 0:00:13.7]} 39... a3 {[%clk 0:00:57]} 40. c7
{[%clk 0:00:13.9]} 40... a2 {[%clk 0:00:57.3]} 41. Ra8 {[%clk 0:00:08.6]} 41...
a1=Q {[%clk 0:00:56.8]} 42. Rxa1 {[%clk 0:00:08.7]} 1-0

[Event "Early-Titled-Tuesday-Blitz-October-24-2023"]
[Site "Chess.com"]
[Date "2023.10.24"]
[Round "3"]
[White "guillembaches"]
[Black "RETURNOFTHELAGGER"]
[Result "1/2-1/2"]
[WhiteElo "2482"]
[BlackElo "2662"]
[TimeControl "180+1"]
[EndTime "8:27:07 PDT"]
[Termination "Game drawn by repetition"]

1. d4 {[%clk 0:03:00.9]} 1... Nf6 {[%clk 0:02:53.4]} 2. Nf3 {[%clk 0:03:01.4]}
2... d5 {[%clk 0:02:51.4]} 3. Bg5 {[%clk 0:03:01.7]} 3... Ne4 {[%clk 0:02:36.3]}
4. Bf4 {[%clk 0:03:01.8]} 4... Bf5 {[%clk 0:02:34.3]} 5. e3 {[%clk 0:03:01.6]}
5... e6 {[%clk 0:02:34.3]} 6. Nbd2 {[%clk 0:03:01.6]} 6... Bd6 {[%clk
0:02:31.7]} 7. Bd3 {[%clk 0:02:58.4]} 7... Bxf4 {[%clk 0:02:28.3]} 8. exf4
{[%clk 0:02:58.2]} 8... Nxd2 {[%clk 0:02:22.3]} 9. Qxd2 {[%clk 0:02:56.4]} 9...
Bxd3 {[%clk 0:02:21]} 10. Qxd3 {[%clk 0:02:56.5]} 10... Qd7 {[%clk 0:02:17.7]}
11. Ne5 {[%clk 0:02:53]} 11... Qe7 {[%clk 0:02:16.4]} 12. O-O {[%clk 0:02:44]}
12... Nd7 {[%clk 0:02:13.8]} 13. f5 {[%clk 0:02:33]} 13... Nxe5 {[%clk
0:02:09.5]} 14. dxe5 {[%clk 0:02:32]} 14... O-O-O {[%clk 0:02:10.4]} 15. Rae1
{[%clk 0:02:18.9]} 15... Kb8 {[%clk 0:01:58.6]} 16. f4 {[%clk 0:02:10.6]} 16...
g6 {[%clk 0:01:57.1]} 17. f6 {[%clk 0:02:02.6]} 17... Qc5+ {[%clk 0:01:55.7]}
18. Kh1 {[%clk 0:01:59.2]} 18... h5 {[%clk 0:01:54.1]} 19. c3 {[%clk 0:01:57.8]}
19... h4 {[%clk 0:01:53]} 20. h3 {[%clk 0:01:57.1]} 20... Qa5 {[%clk 0:01:46.6]}
21. a3 {[%clk 0:01:54]} 21... c5 {[%clk 0:01:46.4]} 22. Rd1 {[%clk 0:01:51.5]}
22... c4 {[%clk 0:01:44.4]} 23. Qe3 {[%clk 0:01:48.2]} 23... Rh5 {[%clk
0:01:41.8]} 24. Rb1 {[%clk 0:01:41.1]} 24... Rf5 {[%clk 0:01:10.8]} 25. b3
{[%clk 0:01:35.1]} 25... cxb3 {[%clk 0:01:11.7]} 26. Rxb3 {[%clk 0:01:32.2]}
26... g5 {[%clk 0:01:09.3]} 27. Rfb1 {[%clk 0:01:28.6]} 27... b6 {[%clk
0:01:05.4]} 28. fxg5 {[%clk 0:01:28.3]} 28... Rg8 {[%clk 0:01:02.7]} 29. Rb5
{[%clk 0:01:22.8]} 29... Qa6 {[%clk 0:00:42.5]} 30. Rxb6+ {[%clk 0:01:19.2]}
30... axb6 {[%clk 0:00:43.4]} 31. Rxb6+ {[%clk 0:01:19.2]} 31... Qb7 {[%clk
0:00:38.8]} 32. Rxb7+ {[%clk 0:01:14.4]} 32... Kxb7 {[%clk 0:00:39.7]} 33. Qc5
{[%clk 0:01:08.8]} 33... Rgxg5 {[%clk 0:00:34.1]} 34. Qe7+ {[%clk 0:01:02.1]}
34... Kc6 {[%clk 0:00:34.7]} 35. Qxf7 {[%clk 0:01:01.4]} 35... Rf1+ {[%clk
0:00:30.9]} 36. Kh2 {[%clk 0:01:01]} 36... Rxe5 {[%clk 0:00:29.5]} 37. Qe8+
{[%clk 0:00:58.3]} 37... Kc7 {[%clk 0:00:29.2]} 38. Qe7+ {[%clk 0:00:41.3]}
38... Kc6 {[%clk 0:00:29.2]} 39. f7 {[%clk 0:00:34.9]} 39... Ref5 {[%clk
0:00:28.9]} 40. Qxe6+ {[%clk 0:00:33.6]} 40... Kc5 {[%clk 0:00:29.3]} 41. Qe7+
{[%clk 0:00:30.8]} 41... Kc6 {[%clk 0:00:27.8]} 42. Qe6+ {[%clk 0:00:27.3]}
42... Kc5 {[%clk 0:00:28.2]} 43. Qe7+ {[%clk 0:00:27.6]} 43... Kc6 {[%clk
0:00:28.7]} 44. Qe6+ {[%clk 0:00:27.9]} 1/2-1/2